[Event "5th Nebesna Sotnya Blitz 2018"]
[Site "Lutsk"]
[Date "2018.02.16"]
[Round "4"]
[White "Mosesov, Danylo"]
[Black "Yarmysty, Mikhail"]
[Result "0-1"]
[ECO "B07"]
[WhiteElo "2271"]
[BlackElo "2300"]
[Annotator "NA RC"]
[PlyCount "89"]
[EventDate "2018.??.??"]
[EventType "swiss"]
[EventCountry "UKR"]
[SourceTitle "playchess.com"]
[Source "ChessBase"]
[SourceQuality "1"]
[TimeControl "180+2"]

1. d4 {[%emt 0:00:00]} d6 {[%emt 0:00:01]} 2. e4 {[%emt 0:00:04]} Nf6 3. Nc3 c6 {[%emt 0:00:06]} 4. Bg5 {[%emt 0:00:06]} Nbd7 {[%emt 0:00:11]} 5. Qd2 {[%emt 0:00:09]} e5 {[%emt 0:00:03]} 6. Nf3 {[%emt 0:00:15]} Be7 {[%emt 0:00:03]} 7. h3 {[%emt 0:00:10]} b5 {[%emt 0:00:07]} 8. a3 {[%emt 0:00:31]} O-O {[%emt 0:00:02]} 9. Bd3 {[%emt 0:00:06]} Bb7 {[%emt 0:00:05]} 10. O-O {[%emt 0:00:09]} a6 {[%emt 0:00:02]} 11. Rfe1 {[%emt 0:00:01]} h6 {[%emt 0:00:13]} 12. Be3 {[%emt 0:00:09]} Re8 {[%emt 0:00:06]} 13. Rad1 {[%emt 0:00:03]} Bf8 {[%emt 0:00:02]} 14. dxe5 {[%emt 0:00:26]} dxe5 {[%emt 0:00:03]} 15. Ne2 {[%emt 0:00:03]} c5 {[%emt 0:00:11]} 16. Ng3 {[%emt 0:00:01]} c4 {[%emt 0:00:04]} 17. Bf1 {[%emt 0:00:01]} Nc5 {[%emt 0:00:18]} 18. Qxd8 {[%emt 0:00:28]} Raxd8 {[%emt 0:00:01]} 19. Rxd8 {[%emt 0:00:01]} Rxd8 {[%emt 0:00:01]} 20. Nxe5 {[%emt 0:00:01]} Nfxe4 {[%emt 0:00:05]} 21. Nxe4 {[%emt 0:00:03]} Nxe4 {[%emt 0:00:03]} 22. f3 {[%emt 0:00:07]} Ng3 {[%emt 0:00:23]} 23. Kf2 {[%emt 0:00:18]} Nf5 {[%emt 0:00:06]} 24. Bb6 {[%emt 0:00:19]} Rd6 {[%emt 0:00:01]} 25. Ba7 {[%emt 0:00:01]} Rd2+ {[%emt 0:00:22]} 26. Re2 {[%emt 0:00:01]} Rd1 {[%emt 0:00:01]} 27. g4 {[%emt 0:00:06]} Nd4 {[%emt 0:00:04]} 28. Bxd4 {[%emt 0:00:02]} Rxd4 {[%emt 0:00:01]} 29. Kg3 {[%emt 0:00:02]} g5 {[%emt 0:00:04]} 30. c3 {[%emt 0:00:05]} Rd1 {[%emt 0:00:04]} 31. Bg2 {[%emt 0:00:06]} Bd6 {[%emt 0:00:04]} 32. Kf2 {[%emt 0:00:00]} Bc5+ {[%emt 0:00:13]} 33. Kg3 {[%emt 0:00:01]} Kg7 {[%emt 0:00:01]} 34. f4 {[%emt 0:00:07]} Bxg2 {[%emt 0:00:04]} 35. Rxg2 {[%emt 0:00:03]} gxf4+ {[%emt 0:00:02]} 36. Kxf4 Bd6 37. Re2 {[%emt 0:00:02]} f6 {[%emt 0:00:03]} 38. Kf5 {[%emt 0:00:02]} Bxe5 {[%emt 0:00:02]} 39. h4 {[%emt 0:00:02]} Rf1+ {[%emt 0:00:02]} 40. Ke6 {[%emt 0:00:00]} Rg1 {[%emt 0:00:04]} 41. Rd2 {[%emt 0:00:03]} Rxg4 42. h5 Rg5 {[%emt 0:00:17]} 43. Rd7+ {[%emt 0:00:01]} Kh8 {[%emt 0:00:04]} 44. Ra7 {[%emt 0:00:07]} Rxh5 {[%emt 0:00:02]} 45. Ra8+ 0-1

[Event "5th Nebesna Sotnya Blitz 2018"]
[Site "Lutsk"]
[Date "2018.02.16"]
[Round "10"]
[White "Mirzoev, Emil"]
[Black "Yarmysty, Mikhail"]
[Result "1-0"]
[ECO "B07"]
[WhiteElo "2405"]
[BlackElo "2300"]
[Annotator "NA"]
[PlyCount "69"]
[EventDate "2018.??.??"]
[EventType "swiss"]
[EventCountry "UKR"]
[SourceTitle "playchess.com"]
[Source "ChessBase"]
[SourceQuality "1"]
[TimeControl "180+2"]

1. d4 {[%emt 0:00:00]} d6 {[%emt 0:00:00]} 2. e4 {[%emt 0:00:06]} Nf6 3. Nc3 c6 {[%emt 0:00:02]} 4. Nge2 {[%emt 0:00:02]} Nbd7 {[%emt 0:00:04]} 5. h3 {[%emt 0:00:01]} b5 {[%emt 0:00:03]} 6. a3 {[%emt 0:00:01]} e5 {[%emt 0:00:02]} 7. g4 {[%emt 0:00:02]} Be7 {[%emt 0:00:14]} 8. Bg2 O-O 9. O-O {[%emt 0:00:01]} Nb6 {[%emt 0:00:04]} 10. b3 {[%emt 0:00:06]} a6 {[%emt 0:00:10]} 11. Be3 {[%emt 0:00:03]} Nfd7 {[%emt 0:00:03]} 12. f4 {[%emt 0:00:06]} Bb7 {[%emt 0:00:12]} 13. Ng3 {[%emt 0:00:12]} exd4 {[%emt 0:00:07]} 14. Qxd4 {[%emt 0:00:01]} Bf6 {[%emt 0:00:03]} 15. Qd2 {[%emt 0:00:04]} Re8 {[%emt 0:00:08]} 16. g5 {[%emt 0:00:12]} Be7 {[%emt 0:00:18]} 17. Nf5 {[%emt 0:00:02]} Nc5 {[%emt 0:00:11]} 18. Rad1 {[%emt 0:00:15]} d5 {[%emt 0:00:40]} 19. Qf2 {[%emt 0:00:08]} Ncd7 {[%emt 0:00:12]} 20. Nxe7+ {[%emt 0:00:30]} Rxe7 {[%emt 0:00:03]} 21. exd5 {[%emt 0:00:02]} Nxd5 {[%emt 0:00:07]} 22. Nxd5 {[%emt 0:00:04]} cxd5 {[%emt 0:00:01]} 23. Bd4 {[%emt 0:00:02]} Qc7 {[%emt 0:00:19]} 24. f5 {[%emt 0:00:02]} Rae8 25. Rd2 Ne5 {[%emt 0:00:24]} 26. f6 {[%emt 0:00:09]} Re6 {[%emt 0:00:03]} 27. fxg7 {[%emt 0:00:07]} Ng6 {[%emt 0:00:10]} 28. h4 {[%emt 0:00:07]} Re4 {[%emt 0:00:01]} 29. h5 {[%emt 0:00:20]} Nf4 {[%emt 0:00:01]} 30. h6 {[%emt 0:00:15]} Ne2+ {[%emt 0:00:09]} 31. Rxe2 {[%emt 0:00:12]} Rxe2 {[%emt 0:00:01]} 32. Qf3 {[%emt 0:00:16]} R2e6 {[%emt 0:00:04]} 33. Bh3 {[%emt 0:00:06]} Bc8 {[%emt 0:00:03]} 34. Bf5 {[%emt 0:00:10]} Rg6 {[%emt 0:00:03]} 35. Bxg6 {[%emt 0:00:04]} 1-0